bitfinex-derivatives/quotes_BNBF0:USTF0_20250630
["timestamp","ask_amount","ask_price","bid_price","bid_amount"]
[1751318916708,2.26745088,659.37,658.78,1.03489836]
[1751318916911,2.26745088,659.37,658.79,1.03489836]
[1751318917206,2.26745088,659.37,658.8,1.03489836]
[1751318917416,2.26745088,659.37,658.81,1.03489836]
[1751318917606,2.26745088,659.37,658.82,1.03489836]
[1751318917805,2.26745088,659.37,658.83,1.03489836]
[1751318918007,2.26745088,659.37,658.84,1.03489836]
[1751318918211,2.26745088,659.37,658.85,1.03489836]
[1751318918412,2.26745088,659.37,658.73,1.858]
[1751318918605,2.26745088,659.37,658.74,1.03496525]
[1751318918811,2.26745088,659.37,658.75,1.03496525]
[1751318919010,2.26745088,659.37,658.76,1.03496525]
[1751318919307,2.26745088,659.37,658.77,1.03496525]
[1751318919509,2.26745088,659.37,658.78,1.03496525]
[1751318919709,2.26745088,659.37,658.79,1.03496525]
[1751318919909,2.26745088,659.37,658.8,1.03496525]
[1751318920212,2.26745088,659.36,658.81,1.03496525]
[1751318920508,2.26745088,659.36,658.82,1.03496525]
[1751318920709,2.26745088,659.36,658.83,1.03496525]
[1751318920913,2.26745088,659.35,658.84,1.03496525]
[1751318921111,2.26745088,659.35,658.73,1.858]
[1751318921314,2.26745088,659.35,658.74,1.03508396]
[1751318921513,2.26745088,659.35,658.75,1.03508396]
[1751318921714,2.26745088,659.33,658.76,1.03508396]
[1751318921908,2.26745088,659.33,658.77,1.03508396]
[1751318922113,2.26745088,659.33,658.78,1.03508396]
[1751318922312,2.26745088,659.33,658.79,1.03508396]
[1751318922509,2.26745088,659.33,658.8,1.03508396]
[1751318922715,2.26745088,659.33,658.81,1.03508396]
[1751318922912,2.26745088,659.33,658.82,1.03508396]
[1751318923216,2.26745088,659.33,658.83,1.03508396]
[1751318923412,2.26745088,659.33,658.84,1.03508396]
[1751318923614,2.26745088,659.33,658.85,1.03508396]
[1751318923812,2.26745088,659.33,658.73,1.858]
[1751318924116,2.26745088,659.33,658.74,1.03518355]
[1751318924316,2.26745088,659.35,658.75,1.03518355]
[1751318924617,2.26745088,659.35,658.76,1.03518355]
[1751318924912,2.26745088,659.35,658.77,1.03518355]
[1751318925216,2.26745088,659.35,658.78,1.03518355]
[1751318925413,2.26745088,659.35,658.79,1.03518355]
[1751318925612,2.26745088,659.35,658.8,1.03518355]
[1751318925816,2.26745088,659.35,658.81,1.03518355]
[1751318926018,2.26745088,659.35,658.82,1.03518355]
[1751318926212,2.26745088,659.35,658.83,1.03518355]
[1751318926412,2.26745088,659.35,658.84,1.03518355]
[1751318926615,2.26745088,659.35,658.85,1.03518355]
[1751318926813,2.26745088,659.35,658.86,1.03518355]
[1751318927113,2.26745088,659.35,658.87,1.03518355]
[1751318927317,2.26745088,659.35,658.88,1.03518355]
[1751318927616,2.26745088,659.35,658.73,1.658]
[1751318927818,2.26745088,659.35,658.74,1.03544834]
[1751318928014,2.26745088,659.35,658.75,1.03544834]
[1751318928219,2.26745088,659.34,658.76,1.03544834]
[1751318928518,2.26745088,659.34,658.77,1.03544834]
[1751318928719,2.26745088,659.34,658.78,1.03544834]
[1751318928921,2.26745088,659.34,658.79,1.03544834]
[1751318929120,2.26745088,659.34,658.8,1.03544834]
[1751318929317,2.26745088,659.34,658.81,1.03544834]
[1751318929519,2.26745088,659.34,658.82,1.03544834]
[1751318929719,2.26745088,659.34,658.83,1.03544834]
[1751318929925,2.26745088,659.34,658.84,1.03544834]
[1751318930124,2.26745088,659.34,658.85,1.03544834]
[1751318930326,2.26745088,659.34,658.86,1.03544834]
[1751318930525,2.26745088,659.34,658.87,1.03544834]
[1751318930723,2.26745088,659.34,658.88,1.03544834]
[1751318930921,2.26745088,659.34,658.89,1.03544834]
[1751318931124,2.26745088,659.34,658.86,2.051]
[1751318931328,2.26745088,659.36,658.87,1.03580281]
[1751318931526,2.26745088,659.36,658.88,1.03580281]
[1751318931826,2.26745088,659.36,658.89,1.03580281]
[1751318932027,2.26745088,659.36,658.86,2.051]
[1751318932232,2.26745088,659.35,658.87,1.03581439]
[1751318932527,2.26745088,659.35,658.88,1.03581439]
[1751318932726,2.26745088,659.35,658.89,1.03581439]
[1751318932929,2.26745088,659.35,658.9,1.03581439]
[1751318933132,2.26745088,659.35,658.86,2.051]
[1751318933333,2.26745088,659.35,658.87,1.03603998]
[1751318933532,2.26745088,659.35,658.88,1.03603998]
[1751318933831,2.26745088,659.35,658.89,1.03603998]
[1751318934028,2.26745088,659.35,658.9,1.03603998]
[1751318934229,0.26410054,659.44,658.86,2.051]
[1751318934230,2.26745088,659.34,658.91,1.03603998]
[1751318934429,2.26745088,659.34,658.86,2.051]
[1751318934630,2.26745088,659.34,658.87,1.03647159]
[1751318934828,2.26745088,659.34,658.86,2.051]
[1751318934829,2.26745088,659.34,658.88,1.03647159]
[1751318935032,2.26745088,659.34,658.89,1.03647159]
[1751318935227,2.26745088,659.35,658.9,1.03647159]
[1751318935432,2.26745088,659.35,658.91,1.03647159]
[1751318935631,2.26745088,659.35,658.86,2.051]
[1751318935931,2.26745088,659.35,658.87,1.03661325]
[1751318936127,2.26745088,659.36,658.88,1.03661325]
[1751318936332,2.26745088,659.36,658.89,1.03661325]
[1751318936532,2.26745088,659.36,658.9,1.03661325]
[1751318936729,2.26745088,659.36,658.91,1.03661325]
[1751318936931,2.26745088,659.37,658.92,1.03661325]
[1751318937132,2.26745088,659.37,658.86,2.051]
[1751318937331,2.26745088,659.36,658.87,1.03695154]
[1751318937528,2.26745088,659.36,658.88,1.03695154]
[1751318937728,2.26745088,659.36,658.89,1.03695154]
[1751318938031,2.26745088,659.36,658.9,1.03695154]
[1751318938231,2.26745088,659.35,658.91,1.03695154]
[1751318938431,2.26745088,659.36,658.92,1.03695154]
[1751318938632,2.26745088,659.36,658.93,1.03695154]
[1751318938931,2.26745088,659.36,658.86,2.051]
[1751318939129,2.26745088,659.35,658.87,1.03709608]
[1751318939329,2.26745088,659.35,658.88,1.03709608]
[1751318939531,2.26745088,659.35,658.89,1.03709608]
[1751318939832,2.26745088,659.35,658.9,1.03709608]
[1751318940131,2.26745088,659.35,658.91,1.03709608]
[1751318940329,2.26745088,659.35,658.92,1.03709608]
[1751318940532,2.26745088,659.35,658.93,1.03709608]
[1751318940730,2.26745088,659.35,658.86,2.051]
[1751318940934,2.26745088,659.35,658.87,1.03729235]
[1751318941130,2.26745088,659.34,658.88,1.03729235]
[1751318941333,2.26745088,659.32,658.89,1.03729235]
[1751318941534,2.26745088,659.32,658.9,1.03729235]
[1751318941835,2.26745088,659.32,658.91,1.03729235]
[1751318942034,2.26745088,659.32,658.92,1.03729235]
[1751318942231,2.26745088,659.32,658.93,1.03729235]
[1751318942431,2.26745088,659.32,658.86,2.051]
[1751318942636,2.26745088,659.32,658.87,1.03731833]
[1751318942837,2.26745088,659.32,658.88,1.03731833]
[1751318943137,2.26745088,659.32,658.89,1.03731833]
[1751318943437,2.26745088,659.32,658.9,1.03731833]
[1751318943637,2.26745088,659.32,658.91,1.03731833]
[1751318943834,2.26745088,659.33,658.92,1.03731833]
[1751318944037,2.26745088,659.33,658.93,1.03731833]
[1751318944339,2.26745088,659.32,658.86,2.051]
[1751318944537,2.26745088,659.32,658.87,1.03735372]
[1751318944739,2.26745088,659.32,658.88,1.03735372]
[1751318944932,2.26745088,659.32,658.89,1.03735372]
[1751318945137,2.26745088,659.31,658.9,1.03735372]
[1751318945337,2.26745088,659.31,658.91,1.03735372]
[1751318945636,2.26745088,659.31,658.92,1.03735372]
[1751318945836,2.26745088,659.31,658.93,1.03735372]
[1751318946038,2.26745088,659.29,658.86,2.051]
[1751318946335,2.26745088,659.29,658.87,1.03739227]
[1751318946637,2.26745088,659.29,658.88,1.03739227]
[1751318946835,2.26745088,659.29,658.89,1.03739227]
[1751318947039,2.26745088,659.29,658.9,1.03739227]
[1751318947235,2.26745088,659.29,658.91,1.03739227]
[1751318947539,2.26745088,659.29,658.92,1.03739227]
[1751318947837,2.26745088,659.29,658.93,1.03739227]
[1751318948035,2.26745088,659.29,658.86,2.051]
[1751318948338,2.26745088,659.28,658.87,1.03744036]
[1751318948535,2.26745088,659.28,658.88,1.03744036]
[1751318948735,2.26745088,659.28,658.86,2.051]
[1751318948736,2.26745088,659.3,658.89,1.03744036]
[1751318948938,2.26745088,659.3,658.9,1.03744036]
[1751318949135,2.26745088,659.3,658.91,1.03744036]
[1751318949338,2.26745088,659.3,658.86,2.051]
[1751318949339,2.26745088,659.3,658.92,1.03744036]
[1751318949537,2.26745088,659.3,658.93,1.03744036]
[1751318949742,2.26745088,659.3,658.86,2.051]
[1751318949937,2.26745088,659.29,658.87,1.03746438]
[1751318950240,2.26745088,659.29,658.88,1.03746438]
[1751318950440,2.26745088,659.29,658.89,1.03746438]
[1751318950643,2.26745088,659.29,658.9,1.03746438]
[1751318950842,2.26745088,659.29,658.91,1.03746438]
[1751318951139,2.26745088,659.29,658.92,1.03746438]
[1751318951441,2.26745088,659.29,658.93,1.03746438]
[1751318951738,2.26745088,659.29,658.86,2.051]
[1751318951942,2.26745088,659.29,658.87,1.03752229]
[1751318952138,2.26745088,659.29,658.88,1.03752229]
[1751318952337,2.26745088,659.29,658.89,1.03752229]
[1751318952539,2.26745088,659.29,658.9,1.03752229]
[1751318952739,2.26745088,659.29,658.91,1.03752229]
[1751318952938,2.26745088,659.29,658.92,1.03752229]
[1751318953241,2.26745088,659.29,658.93,1.03752229]
[1751318953540,2.26745088,659.29,658.86,2.051]
[1751318953746,2.26745088,659.28,658.87,1.03757483]
[1751318954043,2.26745088,659.28,658.88,1.03757483]
[1751318954239,2.26745088,659.28,658.89,1.03757483]
[1751318954438,2.26745088,659.28,658.9,1.03757483]
[1751318954642,2.26745088,659.28,658.91,1.03757483]
[1751318954845,2.26745088,659.28,658.86,2.051]
[1751318954846,2.26745088,659.28,658.92,1.03757483]
[1751318955043,2.26745088,659.28,658.93,1.03757483]
[1751318955341,2.26745088,659.28,658.91,2.015]
[1751318955542,2.26745088,659.28,658.92,1.03757692]
[1751318955741,2.26745088,659.28,658.93,1.03757692]
[1751318955944,2.26745088,659.28,658.91,2.015]
[1751318956143,2.26745088,659.28,658.92,1.03757692]
[1751318956341,2.26745088,659.28,658.93,1.03757692]
[1751318956548,2.26745088,659.28,658.91,2.015]
[1751318956746,2.26745088,659.28,658.92,1.03757857]
[1751318956946,2.26745088,659.31,658.93,1.03757857]
[1751318957145,2.26745088,659.31,658.91,2.015]
[1751318957446,2.26745088,659.31,658.92,1.03758062]
[1751318957646,2.26745088,659.31,658.93,1.03758062]
[1751318957844,2.26745088,659.31,658.91,2.015]
[1751318958143,2.26745088,659.31,658.92,1.03758062]
[1751318958340,2.26745088,659.31,658.93,1.03758062]
[1751318958645,2.26745088,659.3,658.94,1.03758062]
[1751318958842,2.26745088,659.3,658.91,2.015]
[1751318959047,2.26745088,659.3,658.92,1.037583]
[1751318959242,2.26745088,659.3,658.93,1.037583]
[1751318959448,2.26745088,659.3,658.94,1.037583]
[1751318959743,2.26745088,659.3,658.91,2.015]
[1751318959943,2.26745088,659.3,658.95,1.53]
[1751318960144,2.26745088,659.31,658.95,1.53]
[1751318964252,2.26745088,659.29,658.95,1.53]
[1751318964647,2.26745088,659.3,658.95,1.53]
[1751318965850,2.26745088,659.37,658.95,1.53]
[1751318966852,2.26745088,659.36,658.95,1.53]
[1751318969156,2.26745088,659.38,658.95,1.53]
[1751318970252,2.26745088,659.39,658.95,1.53]
[1751318971053,2.26745088,659.39,658.94,1.513]
[1751318973564,2.26745088,659.4,658.94,1.513]
[1751318974666,2.26745088,659.4,658.95,1.829]
[1751318974965,2.26745088,659.41,658.95,1.829]
[1751318975667,0.26405545,659.46,658.95,1.829]
[1751318975668,2.26745088,659.37,658.95,1.829]
[1751318977668,2.26745088,659.36,658.95,1.829]
[1751318979072,2.26745088,659.34,658.95,1.829]
[1751318980072,2.26745088,659.33,658.95,1.829]
[1751318980872,2.26745088,659.34,658.95,1.829]
[1751318983475,2.26745088,659.32,658.95,1.829]
[1751318984977,2.26745088,659.31,658.95,1.829]
[1751318987183,2.26745088,659.32,658.95,1.829]
[1751318988284,2.26745088,659.37,658.95,1.829]
[1751318989085,2.26745088,659.37,658.96,1.947]
[1751318989386,0.26405545,659.46,658.96,1.947]
[1751318989784,2.26745088,659.41,658.96,1.947]
[1751318990283,2.26745088,659.38,658.96,1.947]
[1751318990884,2.26745088,659.3,658.96,1.947]
[1751318993192,2.26745088,659.31,658.96,1.947]
[1751318993788,0.26405545,659.46,658.96,1.947]
[1751319003097,0.26405545,659.46,658.97,2.354]
[1751319003294,2.26745088,659.34,658.97,2.354]
[1751319003696,2.26745088,659.33,658.97,2.354]
[1751319004400,2.26745088,659.29,658.97,2.354]
[1751319004593,2.26745088,659.28,658.97,2.354]
[1751319005197,2.26745088,659.29,658.97,2.354]
[1751319008002,2.26745088,659.14,658.97,2.354]
[1751319008302,2.26745088,659.16,658.97,2.354]
[1751319008600,2.26745088,659.14,658.97,2.354]
[1751319009196,2.26745088,659.15,658.97,2.354]
[1751319010198,2.26745088,659.12,658.97,2.354]
[1751319011299,2.26745088,659.13,658.97,2.354]
[1751319011901,2.26745088,659.14,658.97,2.354]
[1751319012402,2.26745088,659.15,658.97,2.354]
[1751319012803,2.26745088,659.09,658.97,2.354]
[1751319013098,2.26745088,659.1,658.97,2.354]
[1751319013297,2.26745088,659.11,658.97,2.354]
[1751319014199,2.26745088,659.12,658.97,2.354]
[1751319014400,2.26745088,659.16,658.97,2.354]
[1751319014902,2.26745088,659.17,658.97,2.354]
[1751319015203,2.26745088,659.18,658.97,2.354]
[1751319016200,2.26745088,659.19,658.97,2.354]
[1751319016503,2.26745088,659.18,658.97,2.354]
[1751319017204,2.26745088,659.19,658.97,2.354]
[1751319018105,2.26745088,659.2,658.97,2.354]
[1751319019205,2.26745088,659.2,658.96,1.947]
[1751319020206,2.26745088,659.21,658.96,1.947]
[1751319021105,2.26745088,659.22,658.96,1.947]
[1751319021906,2.26745088,659.22,658.97,1.473]
[1751319023102,2.26745088,659.23,658.97,1.473]
[1751319023305,2.26745088,659.22,658.97,1.473]
[1751319023707,2.26745088,659.23,658.97,1.473]
[1751319024008,2.26745088,659.21,658.97,1.473]
[1751319025005,2.26745088,659.22,658.97,1.473]
[1751319025406,2.26745088,659.23,658.97,1.473]
[1751319026506,2.26745088,659.24,658.97,1.473]
[1751319026806,2.26745088,659.22,658.97,1.473]
[1751319027109,2.26745088,659.23,658.97,1.473]
[1751319027308,2.26745088,659.24,658.97,1.473]
[1751319027912,2.26745088,659.23,658.97,1.473]
[1751319028410,2.26745088,659.25,658.97,1.473]
[1751319031210,0.26405545,659.46,658.97,1.473]
[1751319031211,2.26745088,659.28,658.97,1.473]
[1751319034213,2.26745088,659.27,658.97,1.473]
[1751319034922,2.26745088,659.27,658.84,1.977]
[1751319035220,2.26745088,659.28,658.84,1.977]
[1751319035420,2.26745088,659.27,658.84,1.977]
[1751319037523,2.26745088,659.25,658.84,1.977]
[1751319038117,2.26745088,659.24,658.84,1.977]
[1751319038321,2.26745088,659.23,658.84,1.977]
[1751319038822,2.26745088,659.23,658.85,1.663]
[1751319039520,2.26745088,659.22,658.85,1.663]
[1751319041121,2.26745088,659.17,658.85,1.663]
[1751319042024,2.26745088,659.18,658.85,1.663]
[1751319042224,2.26745088,659.17,658.85,1.663]
[1751319044126,2.26745088,659.16,658.85,1.663]
[1751319044422,2.26745088,659.15,658.85,1.663]
[1751319045429,2.26745088,659.14,658.85,1.663]
[1751319046129,2.26745088,659.13,658.85,1.663]
[1751319046831,2.26745088,659.14,658.85,1.663]
[1751319047231,2.26745088,659.13,658.85,1.663]
[1751319048131,2.26745088,659.12,658.85,1.663]
[1751319048426,0.26405545,659.46,658.85,1.663]
[1751319048427,2.26745088,659.11,658.85,1.663]
[1751319050131,2.26745088,659.1,658.85,1.663]
[1751319051527,2.26745088,659.09,658.85,1.663]
[1751319052228,2.26745088,659.08,658.85,1.663]
[1751319053132,2.26745088,659.07,658.85,1.663]
[1751319054237,2.26745088,659.05,658.85,1.663]
[1751319056137,2.26745088,659.04,658.85,1.663]
[1751319057442,2.26745088,659.07,658.85,1.663]
[1751319058338,2.26745088,659.06,658.85,1.663]
[1751319058840,2.26745088,659.07,658.85,1.663]
[1751319059241,2.26745088,659.06,658.85,1.663]
[1751319060646,2.26745088,659.07,658.85,1.663]
[1751319061140,2.26745088,659.06,658.85,1.663]
[1751319062044,2.26745088,659.06,658.7,2.33]
[1751319062242,2.26745088,659.05,658.7,2.33]
[1751319063446,2.26745088,659.04,658.7,2.33]
[1751319064341,2.26745088,659.07,658.7,2.33]
[1751319065146,2.26745088,659.06,658.7,2.33]
[1751319065341,2.26745088,659.06,658.71,1.969]
[1751319065746,2.26745088,659.08,658.71,1.969]
[1751319066248,2.26745088,659.07,658.71,1.969]
[1751319067147,2.26745088,659.04,658.71,1.969]
[1751319067348,2.26745088,659.03,658.71,1.969]
[1751319068248,2.26745088,659.02,658.71,1.969]
[1751319069846,2.26745088,659.03,658.71,1.969]
[1751319070448,2.26745088,659.02,658.71,1.969]
[1751319072451,2.26745088,659.01,658.71,1.969]
[1751319074548,2.26745088,659.02,658.71,1.969]
[1751319074953,2.26745088,659.03,658.71,1.969]
[1751319075549,2.26745088,659.01,658.71,1.969]
[1751319076250,2.26745088,659.0,658.71,1.969]
[1751319077353,2.26745088,659.01,658.71,1.969]
[1751319077549,2.26745088,659.0,658.71,1.969]
[1751319079353,2.26745088,659.0,658.7,2.33]
[1751319079956,2.26745088,658.99,658.7,2.33]
[1751319080756,2.26745088,658.98,658.7,2.33]
[1751319082157,2.26745088,658.98,658.71,2.039]
[1751319084359,2.26745088,658.99,658.71,2.039]
[1751319086162,2.26745088,658.98,658.71,2.039]
[1751319096465,2.26745088,659.09,658.71,2.039]
[1751319097269,2.26745088,659.11,658.71,2.039]
[1751319102074,2.26745088,659.11,658.7,2.33]
[1751319103674,2.26745088,659.18,658.7,2.33]
[1751319103874,2.26745088,659.19,658.7,2.33]
[1751319104374,2.26745088,659.16,658.7,2.33]
[1751319104777,0.26405545,659.46,658.7,2.33]
[1751319104778,2.26745088,659.15,658.7,2.33]
[1751319105376,2.26745088,659.15,658.71,1.93]
[1751319106273,2.26745088,659.12,658.71,1.93]
[1751319110678,2.26745088,659.1,658.71,1.93]
[1751319113582,2.26745088,659.0,658.71,1.93]
[1751319114381,2.26745088,659.06,658.71,1.93]
[1751319114882,2.26745088,659.07,658.71,1.93]
[1751319115784,2.26745088,659.08,658.71,1.93]
[1751319116082,2.26745088,659.1,658.71,1.93]
[1751319116877,2.26745088,659.09,658.71,1.93]
[1751319118380,2.26745088,659.09,658.7,2.33]
[1751319120087,2.26745088,659.09,658.61,2.166]
[1751319120288,2.26745088,659.07,658.62,1.03681505]
[1751319120488,2.26745088,659.07,658.61,2.166]
[1751319120787,2.26745088,659.07,658.62,1.03681497]
[1751319120987,2.26745088,659.07,658.61,2.166]
[1751319121192,2.26745088,659.07,658.62,1.03681497]
[1751319121388,2.26745088,659.07,658.61,2.166]
[1751319121587,2.26745088,659.07,658.62,1.03681192]
[1751319121791,2.26745088,659.07,658.61,2.166]
[1751319121989,2.26745088,659.08,658.63,1.944]
[1751319123190,2.26745088,659.08,658.64,2.071]
[1751319124290,2.26745088,659.05,658.64,2.071]
[1751319125694,2.26745088,659.01,658.64,2.071]
[1751319129099,2.26745088,659.0,658.64,2.071]
[1751319130094,2.26745088,658.98,658.64,2.071]
[1751319134501,2.26745088,658.99,658.64,2.071]
[1751319135203,2.26745088,658.99,658.63,1.944]
[1751319135902,2.26745088,658.99,658.61,1.674]
[1751319136098,2.26745088,659.1,658.62,1.03676459]
[1751319136302,2.26745088,659.1,658.63,1.03676459]
[1751319136502,2.26745088,659.1,658.64,1.03676459]
[1751319136798,2.26745088,659.1,658.61,1.674]
[1751319137002,2.26745088,659.1,658.62,1.03676239]
[1751319137202,2.26745088,659.1,658.63,1.03676239]
[1751319137401,2.26745088,659.1,658.64,1.03676239]
[1751319137604,2.26745088,659.1,658.61,1.674]
[1751319137803,2.26745088,659.1,658.62,1.03676029]
[1751319138001,2.26745088,659.1,658.63,1.03676029]
[1751319138300,2.26745088,659.1,658.64,1.03676029]
[1751319138501,2.26745088,659.1,658.64,1.408]
[1751319139302,2.26745088,659.09,658.65,2.003]
[1751319144403,2.26745088,659.06,658.65,2.003]
[1751319146008,2.26745088,658.97,658.65,2.003]
[1751319154319,2.26745088,659.0,658.65,2.003]
[1751319162116,2.26745088,659.01,658.65,2.003]
[1751319163117,2.26745088,659.02,658.65,2.003]
[1751319163517,2.26745088,659.03,658.65,2.003]
[1751319164321,2.26745088,659.03,658.64,1.408]
[1751319164517,2.26745088,659.02,658.65,1.03650212]
[1751319164721,2.26745088,659.02,658.64,1.408]
[1751319164921,2.26745088,659.02,658.65,1.03650212]
[1751319165119,2.26745088,659.02,658.64,1.408]
[1751319165318,2.26745088,659.02,658.65,1.03650398]
[1751319165522,2.26745088,659.02,658.64,1.408]
[1751319165823,2.26745088,659.02,658.65,1.03651337]
[1751319166119,2.26745088,659.02,658.64,1.408]
[1751319166317,2.26745088,659.02,658.65,1.03652581]
[1751319166518,2.26745088,659.02,658.64,1.408]
[1751319166720,2.26745088,659.02,658.65,1.03652589]
[1751319166922,2.26745088,659.02,658.64,1.408]
[1751319167120,2.26745088,659.02,658.65,1.03652589]
[1751319167317,2.26745088,659.02,658.64,1.408]
[1751319167518,2.26745088,659.02,658.65,1.03653963]
[1751319167723,2.26745088,659.02,658.64,1.408]
[1751319168023,2.26745088,659.02,658.65,1.03653963]
[1751319168320,2.26745088,659.02,658.64,1.408]
[1751319168523,2.26745088,659.02,658.65,1.03655492]
[1751319168722,2.26745088,659.02,658.64,1.408]
[1751319168925,2.26745088,659.02,658.65,1.03655492]
[1751319169125,2.26745088,659.02,658.64,1.408]
[1751319169324,2.26745088,659.02,658.65,1.0365703]
[1751319169524,0.26416369,659.21,658.64,1.408]
[1751319169525,2.26745088,659.01,658.64,1.408]
[1751319169726,2.26745088,659.01,658.65,1.0365703]
[1751319169922,2.26745088,659.01,658.64,1.408]
[1751319170122,2.26745088,659.01,658.65,1.0365703]
[1751319170423,2.26745088,659.01,658.64,1.408]
[1751319170621,2.26745088,659.01,658.65,1.03658813]
[1751319170823,2.26745088,659.13,658.66,1.03658813]
[1751319171027,2.26745088,659.13,658.64,1.408]
[1751319171226,2.26745088,659.12,658.65,1.03659519]
[1751319171424,2.26745088,659.12,658.64,1.408]
[1751319171721,2.26745088,659.12,658.65,1.0366179]
[1751319171925,2.26745088,659.12,658.64,1.408]
[1751319172226,2.26745088,659.12,658.65,1.0366179]
[1751319172523,2.26745088,659.12,658.64,1.408]
[1751319172726,2.26745088,659.12,658.65,1.03664521]
[1751319172927,2.26745088,659.12,658.64,1.408]
[1751319173125,2.26745088,659.12,658.65,1.03664521]
[1751319173326,2.26745088,659.12,658.64,1.408]
[1751319173527,2.26745088,659.12,658.65,1.03668085]
[1751319173728,2.26745088,659.12,658.64,1.408]
[1751319174027,2.26745088,659.12,658.65,1.03668085]
[1751319174227,2.26745088,659.12,658.64,1.408]
[1751319174525,2.26745088,659.11,658.65,1.03674422]
[1751319174729,2.26745088,659.11,658.64,1.408]
[1751319175030,2.26745088,659.11,658.65,1.03554161]
[1751319175229,2.26745088,659.11,658.64,1.408]
[1751319175528,2.26745088,659.11,658.65,1.03554004]
[1751319175724,2.26745088,659.11,658.64,1.408]
[1751319175925,2.26745088,659.11,658.65,1.03554004]
[1751319176126,2.26745088,659.11,658.64,1.408]
[1751319176327,2.26745088,659.11,658.65,1.03553856]
[1751319176625,2.26745088,659.11,658.64,1.408]
[1751319176825,2.26745088,659.11,658.65,1.03553856]
[1751319177026,2.26745088,659.11,658.64,1.408]
[1751319177429,2.26745088,659.11,658.65,1.03553719]
[1751319177630,2.26745088,659.11,658.64,1.408]
[1751319177830,2.26745088,659.11,658.65,1.03553711]
[1751319178130,2.26745088,659.11,658.64,1.408]
[1751319178330,2.26745088,659.11,658.65,1.03553581]
[1751319178626,2.26745088,659.11,658.64,1.408]
[1751319178829,2.26745088,659.11,658.65,1.03553581]
[1751319179130,2.26745088,659.11,658.64,1.408]
[1751319179331,2.26745088,659.11,658.65,1.03553459]
[1751319179527,2.26745088,659.11,658.64,1.408]
[1751319179733,2.26745088,659.11,658.65,1.03553459]
[1751319179931,2.26745088,659.11,658.64,1.408]
[1751319180129,2.26745088,659.11,658.65,1.03553459]
[1751319180429,2.26745088,659.11,658.64,1.408]
[1751319180632,2.26745088,659.11,658.65,1.03553459]
[1751319180835,2.26745088,659.01,658.64,1.408]
[1751319181034,2.26745088,659.01,658.65,1.03553459]
[1751319181331,2.26745088,659.01,658.64,1.408]
[1751319181529,2.26745088,659.01,658.65,1.03553425]
[1751319181734,2.26745088,659.01,658.64,1.408]
[1751319182030,2.26745088,659.01,658.65,1.03553348]
[1751319182229,2.26745088,659.01,658.64,1.408]
[1751319182533,2.26745088,659.01,658.65,1.03553246]
[1751319182731,2.26745088,659.01,658.64,1.408]
[1751319182932,2.26745088,659.01,658.65,1.03553246]
[1751319183130,2.26745088,658.99,658.64,1.408]
[1751319183328,2.26745088,658.99,658.65,1.03553211]
[1751319183534,2.26745088,659.01,658.64,1.408]
[1751319183830,2.26745088,659.01,658.65,1.0355315]
[1751319184033,2.26745088,659.01,658.64,1.408]
[1751319184233,2.26745088,659.01,658.65,1.0355315]
[1751319184429,2.26745088,659.03,658.64,1.408]
[1751319192737,2.26745088,659.04,658.64,1.408]
[1751319193239,2.26745088,659.03,658.64,1.408]
[1751319194342,2.26745088,658.99,658.64,1.408]
[1751319194637,2.26745088,659.0,658.48,1.803]
[1751319194838,2.26745088,659.0,658.49,1.03552334]
[1751319195138,2.26745088,659.0,658.5,1.03552334]
[1751319195343,2.26745088,659.0,658.51,1.03552334]
[1751319195637,2.26745088,659.0,658.52,1.03552334]
[1751319195841,2.26745088,659.0,658.53,1.03552334]
[1751319196141,2.26745088,658.99,658.54,1.03552334]
[1751319196341,2.26745088,658.99,658.55,1.03552334]
[1751319196638,2.26745088,658.99,658.56,1.03552334]
[1751319196836,2.26745088,658.99,658.57,1.03552334]
[1751319197038,2.26745088,658.99,658.58,1.03552334]
[1751319197241,2.26745088,658.99,658.59,1.03552334]
[1751319197541,2.26745088,658.99,658.6,1.03552334]
[1751319197741,2.26745088,658.99,658.48,1.803]
[1751319197742,2.26745088,658.97,658.61,1.03552334]
[1751319197937,2.26745088,658.97,658.62,1.03552334]
[1751319198139,2.26745088,658.97,658.48,1.803]
[1751319198444,2.26745088,658.97,658.49,1.03552271]
[1751319198643,2.26745088,658.97,658.5,1.03552271]
[1751319198844,2.26745088,658.97,658.51,1.03552271]